bitfinex/quotes_BTCUSD_20230110
["timestamp","ask_amount","ask_price","bid_price","bid_amount"]
[1673309459752,0.00765967,17194.0,17193.0,5.95230533]
[1673309460517,0.00765967,17194.0,17193.0,5.95295228]
[1673309460760,0.00765967,17194.0,17193.0,6.5345604]
[1673309461264,0.00765967,17194.0,17193.0,5.95295228]
[1673309462796,0.00765967,17194.0,17193.0,6.30755409]
[1673309463306,0.00765967,17194.0,17193.0,5.59095028]
[1673309464064,0.00765967,17194.0,17193.0,5.95295228]
[1673309464600,0.00765967,17194.0,17193.0,6.56337534]
[1673309465586,0.00765967,17194.0,17193.0,6.20137334]
[1673309466104,0.00765967,17194.0,17193.0,6.56337534]
[1673309467127,0.00765967,17194.0,17193.0,6.20137334]
[1673309469573,0.00765967,17194.0,17193.0,5.77054568]
[1673309469819,0.00765967,17194.0,17193.0,6.20137334]
[1673309471339,0.00765967,17194.0,17193.0,5.7647508]
[1673309471609,0.00765967,17194.0,17193.0,6.40969633]
[1673309472117,0.00765967,17194.0,17193.0,6.77169833]
[1673309473598,0.00765967,17194.0,17193.0,6.40969633]
[1673309474629,0.00665967,17194.0,17193.0,6.40969633]
[1673309480312,0.00665967,17194.0,17193.0,5.97886867]
[1673309481670,0.00665967,17194.0,17193.0,6.23919725]
[1673309482432,0.00665967,17194.0,17193.0,5.97886867]
[1673309482965,0.00665967,17194.0,17193.0,6.40969633]
[1673309483236,0.00665967,17194.0,17193.0,6.80259354]
[1673309484318,0.00665967,17194.0,17193.0,7.2334212]
[1673309484584,0.00665967,17194.0,17193.0,5.97886867]
[1673309485640,0.442856,17194.0,17193.0,4.3227892]
[1673309486649,0.18113203,17194.0,17193.0,4.6227892]
[1673309487422,0.18113203,17194.0,17193.0,4.4837892]
[1673309488199,0.18113203,17194.0,17193.0,4.6237892]
[1673309488434,0.18113203,17194.0,17193.0,3.72984153]
[1673309489219,0.54313403,17194.0,17193.0,3.72984153]
[1673309489590,0.54479461,17194.0,17193.0,3.72984153]
[1673309489753,0.18113203,17194.0,17193.0,3.72984153]
[1673309489996,0.18113203,17194.0,17193.0,4.02984153]
[1673309490236,0.18113203,17194.0,17193.0,3.72984153]
[1673309490485,0.54479461,17194.0,17193.0,3.72984153]
[1673309490741,0.54313403,17194.0,17193.0,3.72984153]
[1673309491216,0.18113203,17194.0,17193.0,3.72984153]
[1673309492728,0.18279261,17194.0,17193.0,3.72984153]
[1673309492982,0.00665967,17194.0,17193.0,4.02984153]
[1673309494994,0.00665967,17194.0,17193.0,4.46066919]
[1673309495294,0.61073095,17196.0,17194.0,0.3]
[1673309495295,0.35084922,17196.0,17194.0,0.3]
[1673309495547,0.35084922,17196.0,17195.0,2.744692]
[1673309496313,0.17447236,17196.0,17195.0,3.044692]
[1673309496807,0.17447236,17196.0,17195.0,3.72446276]
[1673309497355,0.17447236,17196.0,17195.0,3.84146276]
[1673309498380,0.17447236,17196.0,17195.0,3.84210963]
[1673309498664,0.17447236,17196.0,17195.0,3.84146276]
[1673309501213,0.17613294,17196.0,17195.0,3.54146276]
[1673309501723,0.17447236,17196.0,17195.0,3.54146276]
[1673309502243,0.17613294,17196.0,17195.0,3.54146276]
[1673309502508,0.17447236,17196.0,17195.0,3.54146276]
[1673309503522,0.17447236,17196.0,17195.0,3.84146276]
[1673309504296,0.43588373,17196.0,17195.0,3.84146276]
[1673309504932,0.17447236,17196.0,17195.0,3.84146276]
[1673309505366,0.79392375,17197.0,17195.0,3.84146276]
[1673309505879,0.17447236,17196.0,17195.0,3.84146276]
[1673309506893,0.17447236,17196.0,17195.0,3.72446276]
[1673309507149,0.17447236,17196.0,17195.0,3.84146276]
[1673309507680,0.17447236,17196.0,17195.0,3.72446276]
[1673309508150,0.17447236,17196.0,17195.0,3.84146276]
[1673309509429,0.79392375,17197.0,17195.0,3.84146276]
[1673309509677,0.44491677,17197.0,17196.0,0.6]
[1673309509928,0.44491677,17197.0,17196.0,2.34459]
[1673309510691,0.44491677,17197.0,17196.0,2.85708246]
[1673309510943,0.44491677,17197.0,17196.0,3.15708246]
[1673309511160,0.44491677,17197.0,17196.0,3.20208246]
[1673309514239,0.1835054,17197.0,17196.0,3.20208246]
[1673309515268,0.00903304,17197.0,17196.0,3.40208246]
[1673309515536,0.00903304,17197.0,17196.0,4.78756237]
[1673309515789,0.00903304,17197.0,17196.0,4.96136289]
[1673309516372,0.00903304,17197.0,17196.0,5.22169147]
[1673309516600,0.00903304,17197.0,17196.0,5.17669147]
[1673309516849,0.00903304,17197.0,17196.0,4.91636289]
[1673309517111,0.00903304,17197.0,17196.0,5.05636289]
[1673309517372,0.00903304,17197.0,17196.0,4.91636289]
[1673309517627,0.00903304,17197.0,17196.0,5.05636289]
[1673309517902,0.00903304,17197.0,17196.0,4.54387043]
[1673309518144,0.00903304,17197.0,17196.0,5.2323966]
[1673309519667,0.00903304,17197.0,17196.0,5.8139266]
[1673309519951,0.00892543,17197.0,17196.0,5.8139266]
[1673309520709,0.00892543,17197.0,17196.0,5.64012608]
[1673309521715,0.00892543,17197.0,17196.0,5.8139266]
[1673309523492,0.00892543,17197.0,17196.0,5.12540043]
[1673309524509,0.00892543,17197.0,17196.0,5.38572901]
[1673309524784,0.00892543,17197.0,17196.0,5.84077567]
[1673309525572,0.00892543,17197.0,17196.0,6.54077567]
[1673309526544,0.00892543,17197.0,17196.0,6.3976139]
[1673309527309,0.00892543,17197.0,17196.0,6.6883739]
[1673309529554,0.00892543,17197.0,17196.0,6.3976139]
[1673309529810,0.00892543,17197.0,17196.0,5.82540043]
[1673309530060,0.00833624,17197.0,17196.0,6.11616043]
[1673309530565,0.00833624,17197.0,17196.0,6.37648901]
[1673309530777,0.00833624,17197.0,17196.0,6.72421584]
[1673309531565,0.00833624,17197.0,17196.0,6.55041532]
[1673309532897,0.00833624,17197.0,17196.0,6.67625875]
[1673309533421,0.00833624,17197.0,17196.0,6.38549875]
[1673309534184,0.00833624,17197.0,17196.0,5.82540043]
[1673309534685,0.00833624,17197.0,17196.0,6.51877294]
[1673309534936,0.00333624,17197.0,17196.0,5.82540043]
[1673309538029,0.00333624,17197.0,17196.0,6.08572901]
[1673309538319,0.00333624,17197.0,17196.0,6.70206987]
[1673309538804,0.00333624,17197.0,17196.0,6.56206987]
[1673309539073,0.00333624,17197.0,17196.0,7.27445552]
[1673309539356,0.00333624,17197.0,17196.0,4.73245332]
[1673309539622,0.00333624,17197.0,17196.0,3.83850565]
[1673309539854,0.83467892,17197.0,17196.0,3.83850565]
[1673309540106,0.57326755,17197.0,17196.0,2.68359]
[1673309540356,0.8341536,17197.0,17196.0,1.94459]
[1673309540637,1.37154078,17197.0,17196.0,1.50206]
[1673309540895,1.84674023,17197.0,17196.0,1.50206]
[1673309541138,1.67154996,17197.0,17196.0,1.50206]
[1673309541412,1.48530409,17197.0,17196.0,1.50206]
[1673309541653,1.67056902,17197.0,17196.0,1.36306]
[1673309541971,2.09273247,17197.0,17196.0,0.78153]
[1673309542182,1.73013517,17197.0,17196.0,0.58153]
[1673309542423,1.89747822,17197.0,17196.0,0.004]
[1673309542681,0.18620156,17195.0,17194.0,0.781575]
[1673309542935,0.72213978,17195.0,17194.0,0.781575]
[1673309543240,0.72380036,17195.0,17194.0,0.781575]
[1673309544184,0.75744,17195.0,17194.0,0.830575]
[1673309544429,1.01834433,17195.0,17194.0,0.830575]
[1673309544679,1.01834433,17195.0,17194.0,0.781575]
[1673309544931,1.01834433,17195.0,17194.0,0.2]
[1673309545178,0.75744,17195.0,17194.0,0.830575]
[1673309545671,1.56756196,17195.0,17194.0,0.049]
[1673309545917,1.74149818,17195.0,17194.0,0.049]
[1673309546162,1.74149818,17195.0,17192.0,1.95021834]
[1673309546425,1.19049618,17195.0,17194.0,0.049]
[1673309546671,0.3,17194.0,17192.0,2.53186734]
[1673309546935,0.362002,17193.0,17192.0,1.95021934]
[1673309547185,0.362002,17193.0,17192.0,2.53188434]
[1673309547426,0.362002,17193.0,17192.0,1.812313]
[1673309547678,0.362002,17193.0,17192.0,1.181648]
[1673309548431,0.396546,17193.0,17192.0,1.181648]
[1673309549182,0.39488542,17193.0,17192.0,1.181648]
[1673309549437,0.396546,17193.0,17192.0,1.181648]
[1673309549706,0.40988542,17193.0,17192.0,1.181648]
[1673309550191,0.40988542,17193.0,17192.0,1.763313]
[1673309550453,0.411546,17193.0,17192.0,1.763313]
[1673309550810,0.396546,17193.0,17192.0,1.763313]
[1673309551210,0.396546,17193.0,17192.0,1.812313]
[1673309551455,0.034544,17193.0,17192.0,1.812313]
[1673309552449,0.585546,17193.0,17192.0,0.049]
[1673309554757,0.94500272,17193.0,17192.0,0.049]
[1673309554995,0.9121193,17193.0,17192.0,0.049]
[1673309555262,2.7297506,17193.0,17192.0,0.049]
[1673309556252,2.69946507,17193.0,17190.0,0.00769494]
[1673309556519,0.4898,17191.0,17190.0,0.00769494]
[1673309556772,1.21132561,17191.0,17190.0,0.00769494]
[1673309557024,0.851802,17191.0,17190.0,0.00769494]
[1673309558768,1.25724222,17191.0,17190.0,0.01169494]
[1673309560564,1.2589028,17191.0,17190.0,0.01169494]
[1673309560816,1.41747663,17191.0,17190.0,0.01169494]
[1673309561075,1.99917563,17191.0,17190.0,0.01169494]
[1673309561586,1.41747663,17191.0,17190.0,0.01169494]
[1673309562623,1.41747663,17191.0,17190.0,0.00771468]
[1673309563379,1.99917563,17191.0,17190.0,0.00771468]
[1673309564930,2.61490152,17191.0,17190.0,0.00771468]
[1673309565418,2.03320252,17191.0,17190.0,0.00771468]
[1673309565677,2.61490152,17191.0,17190.0,0.00771468]
[1673309566454,1.45150352,17191.0,17190.0,0.00771468]
[1673309567514,2.03320252,17191.0,17190.0,0.00771468]
[1673309567766,2.06299789,17191.0,17190.0,0.00771468]
[1673309570388,1.87319789,17191.0,17190.0,0.00771468]
[1673309570637,1.29149889,17191.0,17190.0,0.00771468]
[1673309570894,1.87319789,17191.0,17190.0,0.00771468]
[1673309577499,2.04697533,17191.0,17190.0,0.00771468]
[1673309577738,1.85717533,17191.0,17190.0,0.00771468]
[1673309578235,1.10217583,17191.0,17190.0,0.00771468]
[1673309578748,0.74248484,17191.0,17190.0,0.00771468]
[1673309579284,2.29293259,17191.0,17190.0,0.00771468]
[1673309579535,2.29297852,17191.0,17190.0,0.00771468]
[1673309580303,2.72781908,17191.0,17190.0,0.00771468]
[1673309580554,2.29296095,17191.0,17190.0,0.00771468]
[1673309580826,2.72780151,17191.0,17190.0,0.00771468]
[1673309581086,2.70384403,17191.0,17190.0,0.00771468]
[1673309582334,2.12214503,17191.0,17190.0,0.00771468]
[1673309582595,2.12214503,17191.0,17190.0,0.0051648]
[1673309583102,1.77427259,17191.0,17190.0,0.0051648]
[1673309583903,1.7742988,17191.0,17190.0,0.0051648]
[1673309585567,1.33945824,17191.0,17190.0,0.0051648]
[1673309586132,2.60024227,17191.0,17190.0,0.0051648]
[1673309586397,2.04557683,17191.0,17190.0,0.0051648]
[1673309586695,2.62727583,17191.0,17190.0,0.0051648]
[1673309587232,2.60024227,17191.0,17190.0,0.0051648]
[1673309589427,2.63043352,17191.0,17190.0,0.0051648]
[1673309590473,3.21213252,17191.0,17190.0,0.0051648]
[1673309591024,2.6897206,17191.0,17190.0,0.0051648]
[1673309592795,3.21251693,17191.0,17190.0,0.0051648]
[1673309593054,3.5628174,17191.0,17190.0,0.0051648]
[1673309593317,3.53262615,17191.0,17190.0,0.0051648]
[1673309593826,5.10055988,17191.0,17190.0,0.0051648]
[1673309594841,5.1340123,17191.0,17190.0,0.0051648]
[1673309595347,4.15496755,17191.0,17190.0,0.0051648]
[1673309596605,4.12151513,17191.0,17190.0,0.0051648]
[1673309597113,4.15436896,17191.0,17190.0,0.0051648]
[1673309598418,4.12151513,17191.0,17190.0,0.0051648]
[1673309599363,4.14969874,17191.0,17190.0,0.0051648]
[1673309599873,3.95899874,17191.0,17190.0,0.0051648]
[1673309601394,3.93081513,17191.0,17190.0,0.0051648]
[1673309602803,3.93081513,17191.0,17190.0,0.00141912]
[1673309605456,3.95537971,17191.0,17190.0,0.00141912]
[1673309605950,3.93081513,17191.0,17190.0,0.00141912]
[1673309606440,3.96276144,17191.0,17190.0,0.00141912]
[1673309606691,4.90985988,17191.0,17190.0,0.00141912]
[1673309607743,4.3209709,17191.0,17190.0,0.00067253]
[1673309613762,4.51249457,17191.0,17190.0,0.00067253]
[1673309614013,4.90984032,17191.0,17190.0,0.00067253]
[1673309615545,4.93836106,17191.0,17190.0,0.00067253]
[1673309616312,3.99663551,17191.0,17190.0,0.00067253]
[1673309616567,3.59928976,17191.0,17190.0,0.00067253]
[1673309619660,1.81684102,17191.0,17190.0,0.23835042]
[1673309619662,1.81684102,17191.0,17190.0,0.00067253]
[1673309620112,2.34028632,17191.0,17190.0,0.00067253]
[1673309620331,1.81684102,17191.0,17190.0,0.00067253]
[1673309620555,1.81684102,17191.0,17190.0,0.58240553]
[1673309622753,2.34021974,17191.0,17190.0,0.58240553]
[1673309622998,2.36585479,17191.0,17190.0,0.58240553]
[1673309623252,2.36751537,17191.0,17190.0,0.58240553]
[1673309625841,1.84413665,17191.0,17190.0,0.41480654]
[1673309626348,2.36742101,17191.0,17190.0,0.41480654]
[1673309626593,2.36742101,17191.0,17189.0,1.17118994]
[1673309626824,1.47204565,17190.0,17189.0,1.17118994]
[1673309627170,1.11004365,17190.0,17189.0,1.17118994]
[1673309628100,2.01533001,17190.0,17189.0,1.17118994]
[1673309629137,1.65332801,17190.0,17189.0,1.17118994]
[1673309629400,2.01533001,17190.0,17189.0,1.17118994]
[1673309629663,1.13004365,17190.0,17189.0,1.17118994]
[1673309629881,2.01533001,17190.0,17189.0,1.17118994]
[1673309630485,0.61894885,17190.0,17189.0,1.17118994]
[1673309630737,0.25694685,17190.0,17189.0,1.17118994]
[1673309631266,1.12997554,17190.0,17189.0,1.17118994]
[1673309631535,0.25694685,17190.0,17189.0,1.17118994]
[1673309633028,0.61894885,17190.0,17189.0,1.17118994]
[1673309633541,0.25694685,17190.0,17189.0,1.17118994]
[1673309634037,0.61894885,17190.0,17189.0,1.17118994]
[1673309634505,0.25860743,17190.0,17189.0,1.17118994]
[1673309634764,0.28502188,17190.0,17189.0,1.17118994]
[1673309634979,0.6453633,17190.0,17189.0,1.17118994]
[1673309635533,1.08128907,17190.0,17189.0,1.17118994]
[1673309637033,1.08294965,17190.0,17189.0,1.17118994]
[1673309637574,1.08128907,17190.0,17189.0,1.17118994]
[1673309639941,1.08294965,17190.0,17189.0,1.17118994]
[1673309640204,1.08128907,17190.0,17189.0,1.17118994]
[1673309640983,1.08294965,17190.0,17189.0,1.17118994]
[1673309641205,1.08028907,17190.0,17189.0,1.17118994]
[1673309641970,1.07938765,17190.0,17189.0,1.17118994]
[1673309642222,1.07772707,17190.0,17189.0,1.17118994]
[1673309643096,1.07938765,17190.0,17189.0,1.17118994]
[1673309643343,0.64346188,17190.0,17189.0,1.17118994]
[1673309644317,1.51484349,17190.0,17189.0,1.17118994]
[1673309644596,1.51650407,17190.0,17189.0,1.17118994]
[1673309645626,0.6418013,17190.0,17189.0,1.17118994]
[1673309646420,1.07770793,17190.0,17189.0,1.17118994]
[1673309646666,0.6418013,17190.0,17189.0,1.17118994]
[1673309646935,1.55102942,17190.0,17189.0,1.17118994]
[1673309648195,0.67633215,17190.0,17189.0,1.17118994]
[1673309649179,1.54937372,17190.0,17189.0,1.17118994]
[1673309649433,1.5510343,17190.0,17189.0,1.17118994]
[1673309650293,1.54937372,17190.0,17189.0,1.17118994]
[1673309650551,1.5510343,17190.0,17189.0,1.17118994]
[1673309650808,1.54937372,17190.0,17189.0,1.17118994]
[1673309654487,1.5510343,17190.0,17189.0,1.17118994]
[1673309655543,2.07431866,17190.0,17189.0,1.17118994]
[1673309660307,2.07265808,17190.0,17189.0,1.17118994]
[1673309660805,2.09665808,17190.0,17189.0,1.17118994]
[1673309661570,2.09665808,17190.0,17189.0,1.17163827]
[1673309661826,1.57337372,17190.0,17189.0,1.17163827]
[1673309662075,1.57337372,17190.0,17189.0,1.17118994]
[1673309664080,1.5750343,17190.0,17189.0,1.17118994]
[1673309664831,1.5750343,17190.0,17189.0,1.17111324]
[1673309665558,1.57337372,17190.0,17189.0,1.17111324]
[1673309665810,1.5750343,17190.0,17189.0,1.17111324]
[1673309669565,1.57337372,17190.0,17189.0,1.17111324]
[1673309673299,1.57337372,17190.0,17189.0,1.75288024]
[1673309673300,1.5750343,17190.0,17189.0,1.75288024]
[1673309677573,1.57337372,17190.0,17189.0,1.75288024]
[1673309681642,1.5750343,17190.0,17189.0,1.75288024]
[1673309681899,2.09831866,17190.0,17189.0,1.75288024]
[1673309682141,1.5750343,17190.0,17189.0,1.75288024]
[1673309682384,2.09831866,17190.0,17189.0,1.75288024]
[1673309684203,1.57337372,17190.0,17189.0,1.75288024]
[1673309684457,1.5750343,17190.0,17189.0,1.75288024]
[1673309689185,1.5750343,17190.0,17189.0,1.75276221]
[1673309690423,2.09831866,17190.0,17189.0,1.75276221]
[1673309690677,1.5750343,17190.0,17189.0,1.75276221]
[1673309692729,1.56837372,17190.0,17189.0,1.75276221]
[1673309700930,2.09331866,17190.0,17189.0,1.75276221]
[1673309701443,2.09331866,17190.0,17189.0,1.16756721]
[1673309701699,2.09165808,17190.0,17189.0,1.16756721]
[1673309703272,2.09165808,17190.0,17189.0,0.58581621]
[1673309703540,2.09165808,17190.0,17189.0,0.00407221]
[1673309703541,1.93055549,17190.0,17189.0,0.00407221]
[1673309704066,2.51942491,17190.0,17189.0,0.00342693]
[1673309704329,1.93055549,17190.0,17189.0,0.00342693]
[1673309704624,2.51942491,17190.0,17189.0,0.00342693]
[1673309704909,1.93055549,17190.0,17189.0,0.00342693]
[1673309705193,2.48655464,17190.0,17189.0,0.00342693]
[1673309705451,3.06828764,17190.0,17189.0,0.00342693]
[1673309705709,3.09532888,17190.0,17189.0,0.00342693]
[1673309706995,0.33109266,17189.0,17188.0,0.00625857]
[1673309707255,2.08942514,17189.0,17188.0,0.00625857]
[1673309707783,2.27779221,17189.0,17188.0,0.00625857]
[1673309708264,1.91579021,17189.0,17188.0,0.05325857]
[1673309708535,2.27779221,17189.0,17188.0,0.05325857]
[1673309708789,1.7545033,17189.0,17188.0,0.05325857]
[1673309709044,1.3925013,17189.0,17188.0,0.05325857]
[1673309709292,1.7545033,17189.0,17188.0,0.05325857]
[1673309709545,1.3925013,17189.0,17188.0,0.05325857]
[1673309709796,1.7545033,17189.0,17188.0,0.00625857]
[1673309710047,1.4115013,17189.0,17188.0,0.01625857]
[1673309710266,2.29679221,17189.0,17188.0,0.01625857]
[1673309710512,2.51655721,17189.0,17188.0,0.01625857]
[1673309710763,2.87855921,17189.0,17188.0,0.01625857]
[1673309711037,2.51655721,17189.0,17188.0,0.01625857]
[1673309711286,2.87855921,17189.0,17188.0,0.01625857]
[1673309712555,3.24041154,17189.0,17188.0,0.01625857]
[1673309712838,3.24045599,17189.0,17188.0,0.01625857]
[1673309713122,2.87855921,17189.0,17188.0,0.01625857]
[1673309713323,3.24041133,17189.0,17188.0,0.01625857]
[1673309713588,2.87855921,17189.0,17188.0,0.01625857]
[1673309714104,3.24044964,17189.0,17188.0,0.01625857]
[1673309714601,2.87855921,17189.0,17188.0,0.01625857]
[1673309714867,3.24047807,17189.0,17188.0,0.01625857]
[1673309715906,2.87855921,17189.0,17188.0,0.01625857]
[1673309716154,3.24039894,17189.0,17188.0,0.01625857]
[1673309716401,2.65863194,17189.0,17188.0,0.01625857]
[1673309716701,2.29679221,17189.0,17188.0,0.01625857]
[1673309718912,1.7735033,17189.0,17188.0,0.01625857]
[1673309719412,0.90036167,17189.0,17188.0,0.01625857]
[1673309720140,1.7734811,17189.0,17188.0,0.01625857]
[1673309720397,0.90036167,17189.0,17188.0,0.01625857]
[1673309720871,1.77347685,17189.0,17188.0,0.01625857]
[1673309721133,1.77347754,17189.0,17188.0,0.01625857]
[1673309723732,0.90036167,17189.0,17188.0,0.01625857]
[1673309723993,1.33602273,17189.0,17188.0,0.01625857]
[1673309724273,0.90036167,17189.0,17188.0,0.01625857]
[1673309724527,1.33602195,17189.0,17188.0,0.01625857]
[1673309724786,0.90036167,17189.0,17188.0,0.01625857]
[1673309726555,1.33603646,17189.0,17188.0,0.01625857]
[1673309726806,0.90036167,17189.0,17188.0,0.01625857]
[1673309727854,1.77347553,17189.0,17188.0,0.01625857]
[1673309728114,0.90036167,17189.0,17188.0,0.01625857]
[1673309728625,1.77347468,17189.0,17188.0,0.01625857]
[1673309733560,0.60046173,17189.0,17188.0,0.59805957]
[1673309733742,1.03628458,17189.0,17188.0,1.17986057]
[1673309734247,0.67428258,17189.0,17188.0,1.17986057]
[1673309734768,1.03628458,17189.0,17188.0,1.17986057]
[1673309735032,0.67428258,17189.0,17188.0,1.17986057]
[1673309735279,1.03628458,17189.0,17188.0,1.17986057]
[1673309735796,0.67428258,17189.0,17188.0,1.17986057]
[1673309736044,1.03628458,17189.0,17188.0,1.17986057]
[1673309736291,0.67428258,17189.0,17188.0,1.17986057]
[1673309736544,1.03628458,17189.0,17188.0,1.17986057]
[1673309737063,0.67428258,17189.0,17188.0,1.17986057]
[1673309737317,1.03628458,17189.0,17188.0,1.17986057]
[1673309737580,0.67443148,17189.0,17188.0,1.17986057]
[1673309737824,1.03643348,17189.0,17188.0,1.17986057]
[1673309738071,0.67443148,17189.0,17188.0,1.17986057]
[1673309738332,1.03643348,17189.0,17188.0,1.17986057]
[1673309739339,0.67443148,17189.0,17188.0,1.17986057]
[1673309739589,0.23845973,17189.0,17188.0,1.17986057]
[1673309739871,1.11154777,17189.0,17188.0,1.17986057]
[1673309740122,1.47354977,17189.0,17188.0,1.17986057]
[1673309741658,1.11154777,17189.0,17188.0,1.17986057]
[1673309741911,1.47354977,17189.0,17188.0,1.17986057]
[1673309742169,1.47354977,17189.0,17188.0,1.76166157]
[1673309742413,1.11154777,17189.0,17188.0,1.76166157]
[1673309742655,1.47354977,17189.0,17188.0,1.76166157]
[1673309743147,1.47354977,17189.0,17188.0,1.76156649]
[1673309743407,1.11154777,17189.0,17188.0,1.76156649]
[1673309743663,1.47354977,17189.0,17188.0,1.76156649]
[1673309744643,1.11154777,17189.0,17188.0,1.76156649]
[1673309744913,1.47354977,17189.0,17188.0,1.76156649]
[1673309745164,1.11154777,17189.0,17188.0,1.17976549]
[1673309745420,1.47354977,17189.0,17188.0,1.17976549]
[1673309745679,1.11154777,17189.0,17188.0,1.17976549]
[1673309745928,1.47354977,17189.0,17188.0,1.17976549]
[1673309746176,1.11154777,17189.0,17188.0,1.17976549]
[1673309746432,1.47354977,17189.0,17188.0,1.17976549]
[1673309750487,1.11154777,17189.0,17188.0,1.17976549]
[1673309750732,1.47354977,17189.0,17188.0,1.17976549]
[1673309750984,1.11154777,17189.0,17188.0,1.17976549]
[1673309751230,1.47354977,17189.0,17188.0,1.17976549]
[1673309752478,1.11154777,17189.0,17188.0,1.17976549]
[1673309752725,1.47354977,17189.0,17188.0,1.17976549]
[1673309753224,1.11154777,17189.0,17188.0,1.17976549]
[1673309753473,1.47354977,17189.0,17188.0,1.17976549]
[1673309753717,1.11154777,17189.0,17188.0,1.17976549]
[1673309753965,1.47354977,17189.0,17188.0,1.17976549]
[1673309754689,1.11154777,17189.0,17188.0,1.17976549]
[1673309754941,1.47354977,17189.0,17188.0,1.17976549]
[1673309755188,1.11154777,17189.0,17188.0,1.17976549]
[1673309755440,1.47354977,17189.0,17188.0,1.17976549]
[1673309756144,1.11154777,17189.0,17188.0,1.17976549]
[1673309756395,1.47354977,17189.0,17188.0,1.17976549]
[1673309757364,1.11154777,17189.0,17188.0,1.17976549]
[1673309757650,1.47354977,17189.0,17188.0,1.17976549]
[1673309758150,1.11154777,17189.0,17188.0,1.17976549]
[1673309758392,1.47354977,17189.0,17188.0,1.17976549]
[1673309759133,1.11154777,17189.0,17188.0,1.17976549]
[1673309759390,1.47354977,17189.0,17188.0,1.17976549]
[1673309760679,1.11154777,17189.0,17188.0,1.17976549]
[1673309761476,1.47354977,17189.0,17188.0,1.17976549]
[1673309761723,1.11154777,17189.0,17188.0,1.17976549]
[1673309761970,1.47354977,17189.0,17188.0,1.17976549]
[1673309762221,1.11154777,17189.0,17188.0,1.17976549]
[1673309762489,1.47354977,17189.0,17188.0,1.17976549]
[1673309762996,1.99849926,17189.0,17188.0,1.17976549]
[1673309766159,1.99849926,17189.0,17188.0,1.17965936]
[1673309767502,1.47521035,17189.0,17188.0,1.17965936]
[1673309768016,1.8049186,17189.0,17188.0,0.01605736]
[1673309768273,0.11604024,17187.0,17186.0,0.00913365]
[1673309768528,1.00169379,17187.0,17186.0,0.00913365]
[1673309768771,1.89432615,17187.0,17186.0,0.00913365]
[1673309769037,2.41753663,17187.0,17186.0,0.00913365]
[1673309769547,1.89432615,17187.0,17186.0,0.00913365]
[1673309770060,3.06503057,17187.0,17186.0,0.00913365]
[1673309770344,3.28023057,17187.0,17186.0,0.00913365]
[1673309770602,3.86206557,17187.0,17186.0,0.00913365]
[1673309770808,3.30175676,17187.0,17186.0,0.00913365]
[1673309771306,3.27344215,17187.0,17186.0,0.00913365]
[1673309771887,3.29867894,17187.0,17186.0,0.00913365]
[1673309772071,3.27510273,17187.0,17186.0,0.00913365]
[1673309772319,3.86397215,17187.0,17186.0,0.00913365]
[1673309772563,3.27510273,17187.0,17186.0,0.00913365]
[1673309773311,3.79765038,17187.0,17186.0,0.00913365]
[1673309773578,3.79764909,17187.0,17186.0,0.00913365]
[1673309773829,3.8287669,17187.0,17186.0,0.00913365]
[1673309774601,3.79764909,17187.0,17186.0,0.00913365]
[1673309775380,3.8261675,17187.0,17186.0,0.00913365]
[1673309775662,3.46385042,17187.0,17186.0,0.00913365]
[1673309775887,3.79731028,17187.0,17186.0,0.00913365]
[1673309777141,3.27476392,17187.0,17186.0,0.00533403]
[1673309778732,3.79695494,17187.0,17186.0,0.00533403]
[1673309778994,3.82692348,17187.0,17186.0,0.00533403]
[1673309779262,2.43139842,17187.0,17186.0,0.00533403]
[1673309779609,3.30469875,17187.0,17186.0,0.00533403]
[1673309779768,3.27473021,17187.0,17186.0,0.00533403]
[1673309780032,3.79692123,17187.0,17186.0,0.00533403]
[1673309780814,3.8231621,17187.0,17186.0,0.00533403]
[1673309781062,3.30097108,17187.0,17186.0,0.00533403]
[1673309781313,2.42767075,17187.0,17186.0,0.00533403]
[1673309782080,3.30097086,17187.0,17186.0,0.00533403]
[1673309782327,3.27472999,17187.0,17186.0,0.00533403]
[1673309782588,3.30898129,17187.0,17186.0,0.00533403]
[1673309783101,2.43568118,17187.0,17186.0,0.00533403]
[1673309783417,3.30898267,17187.0,17186.0,0.00533403]
[1673309783612,3.79692239,17187.0,17186.0,0.00533403]
[1673309784602,3.83075181,17187.0,17186.0,0.00533403]
[1673309784875,2.4352593,17187.0,17186.0,0.00533403]
[1673309785375,2.50793329,17187.0,17186.0,0.00533403]
[1673309786373,1.92609829,17187.0,17186.0,0.00533403]
[1673309787900,1.73589829,17187.0,17186.0,0.00533403]
[1673309788393,1.73589829,17187.0,17186.0,0.00468622]
[1673309788646,1.30097671,17187.0,17186.0,0.00468622]
[1673309788892,1.60097671,17187.0,17186.0,0.00468622]
[1673309790679,2.03593624,17187.0,17186.0,0.00468622]
[1673309791187,1.60097671,17187.0,17186.0,0.00468622]
[1673309791436,2.03598281,17187.0,17186.0,0.00468622]
[1673309791690,2.03598059,17187.0,17186.0,0.00468622]
[1673309792703,1.41865559,17187.0,17186.0,0.78550093]
[1673309793218,0.75000379,17187.0,17186.0,0.54782304]
[1673309793735,0.75000379,17187.0,17186.0,1.12969104]
[1673309793981,0.57600756,17187.0,17186.0,1.12969104]
[1673309794236,0.57600756,17187.0,17186.0,1.71155904]
[1673309795233,0.314975,17187.0,17186.0,1.71155904]
[1673309795995,0.57600756,17187.0,17186.0,1.71155904]
[1673309796532,0.314975,17187.0,17186.0,1.71155904]
[1673309796783,0.55100756,17187.0,17186.0,1.71155904]
[1673309797049,0.55100756,17187.0,17186.0,1.75455904]
[1673309797050,0.55200756,17187.0,17186.0,1.75455904]
[1673309797297,0.75278637,17187.0,17186.0,0.58655422]
[1673309797544,1.46862067,17187.0,17186.0,0.04768622]
[1673309797797,0.75760252,17187.0,17186.0,0.00468622]
[1673309798067,1.42060452,17187.0,17186.0,0.04768622]
[1673309798310,1.4222651,17187.0,17186.0,0.00468622]
[1673309798553,1.4462651,17187.0,17186.0,0.00468622]
[1673309799545,1.4212651,17187.0,17186.0,0.00468622]
[1673309799821,1.4502651,17187.0,17186.0,0.01068622]
[1673309800335,1.88852724,17187.0,17186.0,0.01068622]
[1673309800580,1.01526122,17187.0,17186.0,0.01068622]
[1673309801348,1.88851812,17187.0,17186.0,0.01068622]
[1673309802069,1.88851899,17187.0,17186.0,0.01068622]
[1673309802359,1.88851913,17187.0,17186.0,0.01068622]
[1673309803132,2.41071015,17187.0,17186.0,0.01068622]
[1673309803396,2.63054315,17187.0,17186.0,0.01068622]
[1673309803643,2.99254515,17187.0,17186.0,0.01068622]
[1673309803896,2.63054315,17187.0,17186.0,0.01068622]
[1673309804151,2.99254515,17187.0,17186.0,0.01068622]
[1673309805146,3.9464834,17187.0,17186.0,0.01068622]
[1673309805394,3.76139963,17187.0,17186.0,0.01068622]
[1673309805639,3.42429238,17187.0,17186.0,0.01068622]
[1673309806143,4.34323463,17187.0,17186.0,0.01068622]
[1673309806909,3.76139963,17187.0,17186.0,0.01068622]
[1673309807171,3.05218913,17187.0,17186.0,0.01068622]
[1673309808448,3.57529088,17187.0,17186.0,0.00934224]
[1673309808969,3.05218913,17187.0,17186.0,0.00934224]